fUST/lending_fUST_20241210
["ID","MTS","AMOUNT","RATE_DAILY","PERIOD"]
[344856319,1733839838731,-500.0,0.00024989,2]
[344856321,1733839838741,-500.0,0.00024989,2]
[344856323,1733839838751,-384.97036188,0.00024989,2]
[344856853,1733839844123,-115.02963812,0.00024989,2]
[344856855,1733839844132,-500.0,0.00024989,2]
[344856857,1733839844141,-230.17036188,0.00024989,2]
[344856860,1733839844153,-269.82963812,0.00024989,2]
[344856862,1733839844163,-500.0,0.00024989,2]
[344856864,1733839844172,-500.0,0.00024989,2]
[344856866,1733839844181,-500.0,0.00024989,2]
[344856868,1733839844191,-500.0,0.00024989,2]
[344856869,1733839844201,-500.0,0.00024989,2]
[344856871,1733839844210,-500.0,0.00024989,2]
[344856873,1733839844220,-500.0,0.00024989,2]
[344856876,1733839844230,-500.0,0.00024989,2]
[344856878,1733839844239,-500.0,0.00024989,2]
[344856880,1733839844249,-500.0,0.00024989,2]
[344856882,1733839844258,-603.33720219,0.00024989,2]
[344856884,1733839844267,-500.0,0.00024989,2]
[344856886,1733839844277,-500.0,0.00024989,2]
[344856888,1733839844287,-500.0,0.00024989,2]
[344856890,1733839844296,-500.0,0.00024989,2]
[344856892,1733839844309,-500.0,0.00024989,2]
[344856894,1733839844318,-500.0,0.00024989,2]
[344856896,1733839844328,-500.0,0.00024989,2]
[344856898,1733839844337,-500.0,0.00024989,2]
[344856900,1733839844347,-500.0,0.00024989,2]
[344856902,1733839844357,-500.0,0.00024989,2]
[344856904,1733839844366,-500.0,0.00024989,2]
[344856906,1733839844375,-500.0,0.00024989,2]
[344856908,1733839844385,-500.0,0.00024989,2]
[344856910,1733839844394,-209.30396877,0.00024989,2]
[344856912,1733839844404,-518.54494361,0.00024989,2]
[344856914,1733839844413,-518.54494361,0.00024989,2]
[344856916,1733839844423,-518.54494361,0.00024989,2]
[344856918,1733839844432,-518.54494361,0.00024989,2]
[344856920,1733839844441,-518.54494361,0.00024989,2]
[344856922,1733839844451,-518.54494361,0.00024989,2]
[344856924,1733839844467,-518.54494361,0.00024989,2]
[344856926,1733839844476,-518.54494361,0.00024989,2]
[344856928,1733839844486,-518.54494361,0.00024989,2]
[344856930,1733839844495,-518.54494361,0.00024989,2]
[344856932,1733839844506,-518.54494361,0.00024989,2]
[344856934,1733839844515,-518.54494361,0.00024989,2]
[344856936,1733839844524,-518.54494361,0.00024989,2]
[344856938,1733839844534,-518.54494361,0.00024989,2]
[344856940,1733839844544,-518.54494361,0.00024989,2]
[344856942,1733839844558,-518.54494361,0.00024989,2]
[344856945,1733839844569,-518.54494361,0.00024989,2]
[344856946,1733839844579,-518.54494361,0.00024989,2]
[344856948,1733839844588,-518.54494361,0.00024989,2]
[344856951,1733839844597,-518.54494361,0.00024989,2]
[344856952,1733839844606,-518.54494361,0.00024989,2]
[344856954,1733839844615,-518.54494361,0.00024989,2]
[344856956,1733839844625,-518.54494361,0.00024989,2]
[344856958,1733839844634,-518.54494361,0.00024989,2]
[344856960,1733839844643,-518.54494361,0.00024989,2]
[344856962,1733839844652,-518.54494361,0.00024989,2]
[344856964,1733839844662,-518.54494361,0.00024989,2]
[344856967,1733839844674,-518.54494361,0.00024989,2]
[344856969,1733839844683,-518.54494361,0.00024989,2]
[344856971,1733839844693,-518.54494361,0.00024989,2]
[344856983,1733839844796,-518.54494361,0.00024989,2]
[344856985,1733839844810,-518.54494361,0.00024989,2]
[344856987,1733839844820,-518.54494361,0.00024989,2]
[344856989,1733839844829,-518.54494361,0.00024989,2]
[344856991,1733839844838,-518.54494361,0.00024989,2]
[344856993,1733839844847,-518.54494361,0.00024989,2]
[344856995,1733839844856,-518.54494361,0.00024989,2]
[344856997,1733839844865,-518.54494361,0.00024989,2]
[344856999,1733839844875,-518.54494361,0.00024989,2]
[344857001,1733839844884,-518.54494361,0.00024989,2]
[344857003,1733839844893,-518.54494361,0.00024989,2]
[344857005,1733839844903,-518.54494361,0.00024989,2]
[344857007,1733839844912,-518.54494361,0.00024989,2]
[344857009,1733839844921,-518.54494361,0.00024989,2]
[344857011,1733839844930,-518.54494341,0.00024989,2]
[344857013,1733839844939,-11256.59094671,0.0002499,5]
[344864541,1733841043767,-1598.0,0.00023466,3]
[344864548,1733841046731,-5308.18303719,0.00023466,3]
[344864549,1733841046740,-443.202,0.0002374,2]
[344864550,1733841046751,-192.0,0.00023954,2]
[344864551,1733841046761,-1002.52,0.000248,2]
[344864552,1733841046771,-1002.52,0.000248,3]
[344864553,1733841046781,-4000.0,0.0002489,2]
[344864554,1733841046791,-662.49615648,0.0002489,2]
[344864555,1733841046802,-1383.79079376,0.0002489,2]
[344864556,1733841046812,-1000.0,0.000249,2]
[344864557,1733841046829,-1500.0,0.000249,2]
[344864558,1733841046841,-1500.0,0.000249,2]
[344864559,1733841046851,-1500.0,0.000249,2]
[344864560,1733841046861,-1500.0,0.000249,2]
[344864561,1733841046874,-1500.0,0.000249,2]
[344864562,1733841046885,-1011.5679191,0.000249,2]
[344864563,1733841046895,-2000.0,0.000249,2]
[344864564,1733841046905,-2000.0,0.0002492,2]
[344864565,1733841046915,-2000.0,0.0002494,2]
[344864566,1733841046924,-17357.34172089,0.0002499,2]
[344864567,1733841046934,-33338.63049362,0.0002499,5]
[344864568,1733841046947,-2821.4,0.0002499,5]
[344864592,1733842231910,-187.47003547,0.00023035,11]
[344864593,1733842231920,-196.40361396,0.0002374,2]
[344864637,1733842237872,-228.34838604,0.0002374,2]
[344864639,1733842237882,-300.0,0.00023922,2]
[344864641,1733842237891,-719.6848555,0.00023923,2]
[344864643,1733842237901,-192.0,0.00023938,2]
[344864645,1733842237911,-1000.0,0.000248,2]
[344864647,1733842237920,-1000.0,0.000248,3]
[344864649,1733842237930,-1000.0,0.000248,4]
[344864651,1733842237939,-1210.81694454,0.00024889,2]
[344864653,1733842237948,-529.99692516,0.0002489,2]
[344864655,1733842237957,-468.81912574,0.000249,2]
[344864657,1733842237967,-580.41523674,0.000249,2]
[344864659,1733842237976,-2000.0,0.0002496,2]
[344864661,1733842237990,-1079.32381125,0.00024988,2]
[344864663,1733842238000,-1079.32381125,0.00024988,2]
[344864665,1733842238009,-1079.32381125,0.00024988,2]
[344864667,1733842238018,-1079.32381125,0.00024988,2]
[344864669,1733842238027,-1079.32381125,0.00024988,2]
[344864677,1733842238037,-1079.32381125,0.00024988,2]
[344864678,1733842238136,-1079.32381125,0.00024988,2]
[344864679,1733842238145,-1079.32381125,0.00024988,2]
[344864680,1733842238155,-1079.32381125,0.00024988,2]
[344864681,1733842238164,-1079.32381125,0.00024988,2]
[344864682,1733842238174,-1079.32381125,0.00024988,2]
[344864683,1733842238183,-1079.32381125,0.00024988,2]
[344864684,1733842238194,-1079.32381125,0.00024988,2]
[344864685,1733842238204,-1079.32381125,0.00024988,2]
[344864686,1733842238218,-1079.32381125,0.00024988,2]
[344864687,1733842238227,-1079.32381125,0.00024988,2]
[344864688,1733842238241,-1079.32381125,0.00024988,2]
[344864689,1733842238251,-1079.32381125,0.00024988,2]
[344864690,1733842238260,-1079.32381125,0.00024988,2]
[344864691,1733842238269,-1079.32381125,0.00024988,2]
[344864692,1733842238279,-1079.32381125,0.00024988,2]
[344864693,1733842238288,-1079.32381125,0.00024988,2]
[344864694,1733842238297,-1079.32381125,0.00024988,2]
[344864695,1733842238307,-1079.32381125,0.00024988,2]
[344864696,1733842238317,-1079.32381125,0.00024988,2]
[344864697,1733842238326,-1079.32381125,0.00024988,2]
[344864698,1733842238335,-1079.32381125,0.00024988,2]
[344864699,1733842238345,-1079.32381125,0.00024988,2]
[344864700,1733842238354,-1079.32381125,0.00024988,2]
[344864701,1733842238364,-1079.32381125,0.00024988,2]
[344864702,1733842238373,-1079.32381125,0.00024988,2]
[344864703,1733842238382,-598.84301902,0.00024988,2]
[344864708,1733842239744,-480.48079223,0.00024988,2]
[344864709,1733842239753,-1079.32381125,0.00024988,2]
[344864710,1733842239763,-1079.32381125,0.00024988,2]
[344864711,1733842239771,-1079.32381125,0.00024988,2]
[344864712,1733842239781,-1079.32381125,0.00024988,2]
[344864713,1733842239790,-8678.67086045,0.00024989,2]
[344864714,1733842239799,-151.0,0.00024989,7]
[344864715,1733842239809,-151.0,0.00024989,7]
[344864716,1733842239819,-84041.95714996,0.0002499,5]
[344864717,1733842239842,-8183.08440621,0.0002499,5]
[344864718,1733842239852,-195.85844528,0.0002499,2]
[344864719,1733842239861,-500.0,0.0002499,5]
[344864720,1733842239871,-2000.0,0.0002499,5]
[344864721,1733842239880,-500.0,0.0002499,5]
[344864722,1733842239890,-500.0,0.0002499,5]
[344864723,1733842239899,-500.0,0.0002499,5]
[344864724,1733842239908,-500.0,0.0002499,5]
[344864725,1733842239917,-500.0,0.0002499,5]
[344864726,1733842239927,-500.0,0.0002499,5]
[344864727,1733842239936,-500.0,0.0002499,5]
[344864728,1733842239946,-152.91474362,0.0002499,5]
[344864729,1733842239956,-500.0,0.0002499,5]
[344864730,1733842239965,-403.98399757,0.0002499,5]
[344864731,1733842239974,-151.0,0.0002499,7]
[344864732,1733842239987,-151.0,0.0002499,7]
[344864733,1733842239996,-196.403614,0.00024993,7]
[344864734,1733842240005,-151.0,0.00024994,7]
[344864735,1733842240015,-151.0,0.00024994,7]
[344864736,1733842240024,-151.0,0.00024994,7]
[344864737,1733842240033,-151.0,0.00024994,7]
[344864738,1733842240043,-151.0,0.00024994,7]
[344864739,1733842240052,-151.0,0.00024994,7]
[344864740,1733842240062,-151.0,0.00024994,7]
[344864741,1733842240072,-151.0,0.00024994,7]
[344864742,1733842240081,-151.0,0.00024997,7]
[344864743,1733842240092,-151.0,0.00024997,7]
[344864744,1733842240101,-167.096964,0.00024997,7]
[344864745,1733842240111,-151.0,0.00024997,7]
[344864746,1733842240120,-151.0,0.00024997,7]
[344864747,1733842240129,-233.81632379,0.00024999,2]
[344864748,1733842240139,-528.20782652,0.00024999,2]
[344864749,1733842240149,-183.44411645,0.00024999,2]
[344864750,1733842240158,-500.0,0.00025,7]
[344864751,1733842240168,-6484.79337073,0.00025,3]
[344864752,1733842240379,-16711.38931517,0.00025,3]
[344864759,1733842243134,-3695.1,0.00025,3]
[344864811,1733842823773,10318.23805666,0.00021,11]
[344864812,1733842848214,166.538,0.000201,2]
[344864817,1733843096715,171.906969,0.00013973,2]
[344864839,1733843431904,-7015.625,0.00022715,2]
[344864841,1733843431914,-166.26393,0.00023046,2]
[344864843,1733843431924,-250.0,0.0002314,2]
[344864845,1733843431934,-1139.6244399,0.00023234,2]
[344864847,1733843431944,-300.0,0.00023273,2]
[344864849,1733843431954,-300.0,0.00023273,2]
[344864851,1733843431964,-1995.8136381,0.00023274,2]
[344864853,1733843431974,-188.0,0.00023288,2]
[344864855,1733843431984,-527.7317812,0.00023682,2]
[344864857,1733843431994,-174.763964,0.00023699,2]
[344864859,1733843432008,-455.703,0.0002375,2]
[344864861,1733843432017,-5944.580327,0.00023783,2]
[344864877,1733843432148,-1987.3357825,0.00023976,2]
[344864879,1733843432162,-874.0,0.00024,5]
[344864881,1733843432172,-184.42553,0.00024713,2]
[344864883,1733843432181,-1000.0,0.000248,2]
[344864885,1733843432191,-1764.61989206,0.00024899,2]
[344864887,1733843432200,-423.99754016,0.000249,2]
[344864890,1733843432210,-1098.73782044,0.00024903,2]
[344864892,1733843432219,-2000.0,0.0002498,2]
[344864894,1733843432229,-883.30662203,0.00024999,2]
[344864896,1733843432238,-883.30662203,0.00024999,2]
[344864898,1733843432248,-883.30662203,0.00024999,2]
[344864900,1733843432264,-883.30662203,0.00024999,2]
[344864902,1733843432275,-883.30662203,0.00024999,2]
[344864903,1733843432286,-883.30662203,0.00024999,2]
[344864904,1733843432296,-883.30662203,0.00024999,2]
[344864905,1733843432306,-883.30662203,0.00024999,2]
[344864906,1733843432316,-883.30662203,0.00024999,2]
[344864907,1733843432325,-883.30662203,0.00024999,2]
[344864908,1733843432335,-883.30662203,0.00024999,2]
[344864909,1733843432344,-883.30662203,0.00024999,2]
[344864910,1733843432353,-883.30662203,0.00024999,2]
[344864911,1733843432362,-883.30662203,0.00024999,2]
[344864912,1733843432372,-329.48516342,0.00024999,2]
[344864913,1733843432384,-553.82145861,0.00024999,2]
[344864914,1733843432394,-883.30662203,0.00024999,2]
[344864915,1733843432404,-883.30662203,0.00024999,2]
[344864916,1733843432414,-883.30662203,0.00024999,2]
[344864917,1733843432423,-883.30662203,0.00024999,2]
[344864918,1733843432433,-883.30662203,0.00024999,2]
[344864919,1733843432443,-883.30662203,0.00024999,2]
[344864920,1733843432452,-883.30662203,0.00024999,2]
[344864921,1733843432462,-883.30662203,0.00024999,2]
[344864922,1733843432472,-883.30662203,0.00024999,2]
[344864923,1733843432481,-883.30662203,0.00024999,2]
[344864924,1733843432491,-883.30662203,0.00024999,2]
[344864925,1733843432500,-883.30662203,0.00024999,2]
[344864926,1733843432513,-883.30662203,0.00024999,2]
[344864927,1733843432522,-883.30662203,0.00024999,2]
[344864928,1733843432531,-883.30662203,0.00024999,2]
[344864929,1733843432541,-883.30662203,0.00024999,2]
[344864930,1733843432551,-883.30662203,0.00024999,2]
[344864931,1733843432562,-883.30662203,0.00024999,2]
[344864932,1733843432573,-883.30662203,0.00024999,2]
[344864933,1733843432583,-883.30662203,0.00024999,2]
[344864934,1733843432592,-868.584845,0.00024999,2]
[344864935,1733843432602,-868.584845,0.00024999,2]
[344864936,1733843432612,-868.584845,0.00024999,2]
[344864937,1733843432622,-868.584845,0.00024999,2]
[344864938,1733843432631,-868.584845,0.00024999,2]
[344864939,1733843432640,-868.584845,0.00024999,2]
[344864940,1733843432650,-868.584845,0.00024999,2]
[344864941,1733843432659,-868.584845,0.00024999,2]
[344864942,1733843432669,-868.584845,0.00024999,2]
[344864943,1733843432678,-868.584845,0.00024999,2]
[344864944,1733843432687,-868.584845,0.00024999,2]
[344864945,1733843432697,-868.584845,0.00024999,2]
[344864946,1733843432707,-868.584845,0.00024999,2]
[344864947,1733843432716,-868.584845,0.00024999,2]
[344864948,1733843432729,-868.584845,0.00024999,2]
[344864949,1733843432749,-868.584845,0.00024999,2]
[344864950,1733843432766,-868.584845,0.00024999,2]
[344864951,1733843432782,-868.584845,0.00024999,2]
[344864952,1733843432798,-868.584845,0.00024999,2]
[344864953,1733843432815,-868.584845,0.00024999,2]
[344864954,1733843432832,-868.584845,0.00024999,2]
[344864955,1733843432848,-868.584845,0.00024999,2]
[344864956,1733843432862,-868.584845,0.00024999,2]
[344864957,1733843432878,-868.584845,0.00024999,2]
[344864958,1733843432892,-868.584845,0.00024999,2]
[344864959,1733843432905,-868.584845,0.00024999,2]
[344864960,1733843432920,-868.584845,0.00024999,2]
[344864961,1733843432935,-868.584845,0.00024999,2]
[344864962,1733843432952,-868.584845,0.00024999,2]
[344864963,1733843432969,-868.584845,0.00024999,2]
[344864964,1733843432981,-868.584845,0.00024999,2]
[344864965,1733843432993,-868.584845,0.00024999,2]
[344864966,1733843433032,-868.584845,0.00024999,2]
[344864967,1733843433049,-867.71626016,0.00024999,2]
[344864968,1733843433069,-867.71626016,0.00024999,2]
[344864969,1733843433088,-867.71626016,0.00024999,2]
[344864970,1733843433101,-833.97173893,0.00024999,2]
[344864971,1733843433119,-833.97173893,0.00024999,2]
[344864972,1733843433144,-833.97173893,0.00024999,2]
[344864973,1733843433162,-833.97173893,0.00024999,2]
[344864974,1733843433179,-833.97173893,0.00024999,2]
[344864975,1733843433196,-833.97173893,0.00024999,2]
[344864976,1733843433211,-833.97173893,0.00024999,2]
[344864977,1733843433226,-833.97173893,0.00024999,2]
[344864978,1733843433241,-833.97173893,0.00024999,2]
[344864979,1733843433259,-833.97173893,0.00024999,2]
[344864980,1733843433276,-833.97173893,0.00024999,2]
[344864981,1733843433291,-833.97173893,0.00024999,2]
[344864982,1733843433306,-833.97173893,0.00024999,2]
[344864983,1733843433320,-833.97173893,0.00024999,2]
[344864984,1733843433335,-833.97173893,0.00024999,2]
[344864985,1733843433349,-833.97173893,0.00024999,2]
[344864986,1733843433363,-833.97173893,0.00024999,2]
[344864987,1733843433377,-833.97173893,0.00024999,2]
[344864988,1733843433390,-151.0,0.00024999,7]
[344864989,1733843433404,-151.0,0.00024999,7]
[344864990,1733843433418,-151.0,0.00024999,7]
[344864991,1733843433431,-151.0,0.00024999,7]
[344864992,1733843433445,-151.0,0.00024999,7]
[344864993,1733843433460,-151.0,0.00024999,7]
[344864994,1733843433474,-151.0,0.00024999,7]
[344864995,1733843433488,-151.0,0.00024999,7]
[344864996,1733843433502,-163.036843,0.00024999,7]
[344864997,1733843433520,-163.036843,0.00024999,7]
[344864998,1733843433534,-163.036843,0.00024999,7]
[344864999,1733843433550,-163.036843,0.00024999,7]
[344865000,1733843433566,-151.0,0.00024999,7]
[344865001,1733843433580,-151.0,0.00024999,7]
[344865002,1733843433596,-151.0,0.00024999,7]
[344865003,1733843433610,-151.0,0.00024999,7]
[344865004,1733843433625,-273.43905,0.00024999,7]
[344865005,1733843433638,-151.0,0.00024999,7]
[344865006,1733843433649,-151.0,0.00024999,7]
[344865007,1733843433754,-151.0,0.00024999,7]
[344865008,1733843433807,-151.0,0.00024999,7]
[344865009,1733843433817,-151.0,0.00024999,7]
[344865010,1733843433828,-151.0,0.00024999,7]
[344865011,1733843433837,-162.615404,0.00024999,7]
[344865012,1733843433847,-152.652322,0.00024999,7]
[344865013,1733843433857,-152.652322,0.00024999,7]
[344865014,1733843433867,-152.652322,0.00024999,7]
[344865015,1733843433877,-152.652322,0.00024999,7]
[344865016,1733843433887,-152.652322,0.00024999,7]
[344865017,1733843433898,-152.652322,0.00024999,7]
[344865018,1733843433908,-152.710912,0.00024999,7]
[344865019,1733843433917,-151.0,0.00024999,7]
[344865020,1733843433927,-171.672985,0.00024999,7]
[344865021,1733843433936,-151.0,0.00024999,7]
[344865022,1733843433946,-151.0,0.00024999,7]
[344865023,1733843433955,-151.0,0.00024999,7]
[344865024,1733843433964,-4339.33543023,0.00025,2]
[344865025,1733843433974,-63108.7173141,0.00025,3]
[344865026,1733843433984,-9403.55373435,0.00025,5]
[344865027,1733843434155,-2707.66482775,0.00025,5]
[344865028,1733843434167,-6631.97158741,0.00025,5]
[344865029,1733843434179,-14987.79772324,0.00025,5]
[344865046,1733843437976,-3324.9718019,0.00025,5]
[344865049,1733843437988,-2202.00000003,0.00025,5]
[344865056,1733843438048,-8086.96233242,0.00025,5]
[344865105,1733843439935,-578.40062322,0.00025,5]
[344865129,1733843443160,-1270.8750075,0.00025,5]
[344865161,1733843445925,-306.92294692,0.00024999,2]
[344865162,1733843445935,-1842.7720531,0.00025,5]
[344865163,1733843736908,9170.13626835,0.00029989,30]
[344865166,1733844225270,171.906969,0.00013973,2]
[344865240,1733844632443,-394.0,0.00021562,2]
[344865242,1733844632455,-4359.91650294,0.00021562,2]
[344865244,1733844632467,-246.08349706,0.00021562,2]
[344865245,1733844632477,-517.56517218,0.0002178,2]
[344865247,1733844632500,-4058.1447943,0.0002178,2]
[344865248,1733844632510,-160.0,0.00022,2]
[344865249,1733844632519,-1008.7499999,0.00023481,2]
[344865250,1733844632528,-188.0,0.0002361,2]
[344865251,1733844632538,-174.763965,0.00023978,2]
[344865252,1733844632547,-153.0,0.00024096,2]
[344865253,1733844632557,-153.0,0.00024096,2]
[344865254,1733844632566,-153.0,0.00024096,2]
[344865255,1733844632575,-923.92736304,0.000245,2]
[344865256,1733844632585,-339.19803212,0.000249,2]
[344865257,1733844632595,-609.01471053,0.00024973,2]
[344865258,1733844632605,-163.79546535,0.00024973,2]
[344865259,1733844632614,-500.0,0.00024973,2]
[344865260,1733844632623,-500.0,0.00024973,2]
[344865261,1733844632633,-500.0,0.00024973,2]
[344865262,1733844632643,-500.0,0.00024999,2]
[344865263,1733844632652,-500.0,0.00024999,2]
[344865264,1733844632662,-500.0,0.00024999,2]
[344865265,1733844632672,-500.0,0.00024999,2]
[344865266,1733844632682,-500.0,0.00024999,2]
[344865267,1733844632691,-500.0,0.00024999,2]
[344865268,1733844632701,-500.0,0.00024999,2]
[344865269,1733844632710,-447.09137876,0.00024999,2]
[344865270,1733844632719,-553.14299261,0.00024999,2]
[344865271,1733844632729,-500.0,0.00024999,2]
[344865272,1733844632739,-500.0,0.00024999,2]
[344865273,1733844632748,-500.0,0.00024999,2]
[344865274,1733844632759,-500.0,0.00024999,2]
[344865275,1733844632769,-500.0,0.00024999,2]
[344865276,1733844632779,-500.0,0.00024999,2]
[344865277,1733844632789,-500.0,0.00024999,2]
[344865278,1733844632799,-250.0,0.00024999,2]
[344865279,1733844632809,-500.0,0.00024999,2]
[344865280,1733844632819,-500.0,0.00024999,2]
[344865281,1733844632829,-200.0,0.00024999,2]
[344865282,1733844632839,-500.0,0.00024999,2]
[344865283,1733844632849,-12313.48338015,0.00025,2]
[344865284,1733844632860,-48963.03030908,0.00025,5]
[344865285,1733844632870,-107381.70721278,0.00025,2]
[344865286,1733844632880,-3000.0,0.00025,2]
[344865287,1733844632890,-151.0,0.00025,7]
[344865288,1733844632900,-151.0,0.00025,7]
[344865289,1733844632909,-151.0,0.00025,7]
[344865290,1733844632919,-151.0,0.00025,7]
[344865291,1733844632929,-1418.44299868,0.00025,7]
[344865292,1733844632943,-151.0,0.00025,7]
[344865293,1733844632953,-151.0,0.00025,7]
[344865294,1733844632962,-151.0,0.00025,7]
[344865295,1733844632972,-207.434193,0.00025,7]
[344865296,1733844632985,-151.0,0.00025,7]
[344865297,1733844632996,-151.0,0.00025,7]
[344865298,1733844633006,-122.0732047,0.00025,7]
[344865299,1733844633022,-28.9267953,0.00025,7]
[344865300,1733844633034,-151.0,0.00025,7]
[344865301,1733844633046,-1187.49918548,0.00025,2]
[344865302,1733844633059,-29682.0523429,0.00025,2]
[344865303,1733844638346,-5011.72196937,0.00025,2]
[344865304,1733844638358,-65261.72650225,0.00025,2]
[344865305,1733844638366,-151.0,0.00025,7]
[344865306,1733844638376,-151.0,0.00025,7]
[344865307,1733844638385,-1151.07586645,0.0002501,2]
[344865308,1733844638397,-1848.92413355,0.0002501,2]
[344865309,1733844638407,-3000.0,0.0002502,2]
[344865310,1733844638417,-942.8758664,0.0002503,2]
[344865311,1733844638438,-2057.1241336,0.0002503,2]
[344865312,1733844638448,-3000.0,0.0002504,2]
[344865313,1733844638458,-3000.0,0.0002505,2]
[344865314,1733844638468,-3000.0,0.0002506,2]
[344865315,1733844638478,-3000.0,0.0002507,2]
[344865316,1733844638488,-4438.978769,0.0002508,2]
[344865317,1733844638498,-151.0,0.0002508,7]
[344865319,1733844638508,-151.0,0.0002508,7]
[344865321,1733844638518,-151.0,0.0002508,7]
[344865323,1733844638528,-151.0,0.0002508,7]
[344865325,1733844638539,-151.0,0.0002508,7]
[344865327,1733844638549,-151.0,0.0002508,7]
[344865328,1733844638558,-151.0,0.0002508,7]
[344865329,1733844638569,-151.0,0.0002508,7]
[344865330,1733844638589,-151.0,0.0002508,7]
[344865332,1733844638599,-151.0,0.0002508,7]
[344865334,1733844638609,-151.0,0.0002508,7]
[344865336,1733844638620,-151.0,0.0002508,7]
[344865338,1733844638630,-151.0,0.0002508,7]
[344865340,1733844638640,-343.26000009,0.00025521,2]
[344865342,1733844638650,-1000.0,0.000258,5]
[344865343,1733844638660,-339.19803209,0.000259,2]
[344865345,1733844638670,-259.6427729,0.00026,10]
[344865349,1733844638692,-756.80481128,0.00026,10]
[344865351,1733844638702,-10000.0,0.00026,30]
[344865353,1733844638713,-1544.04240555,0.00026325,2]
[344865355,1733844638723,-660.0,0.00026384,2]
[344865357,1733844638733,-240.62324284,0.00026445,2]
[344865359,1733844638744,-151.0,0.00026491,7]
[344865361,1733844638754,-166.476562,0.00026491,7]
[344865363,1733844638764,-160.0,0.00026606,3]
[344865365,1733844638775,-1000.0,0.000268,6]
[344865367,1733844638786,-1000.0,0.000268,7]
[344865369,1733844638798,-249.829976,0.000268,7]
[344865371,1733844638808,-339.19803209,0.000269,2]
[344865373,1733844638818,-4465.0,0.00027,21]
[344865375,1733844638840,-151.0,0.00027,7]
[344865377,1733844638851,-151.0,0.00027,7]
[344865379,1733844638861,-237.692618,0.00027,7]
[344865381,1733844638871,-151.0,0.00027,7]
[344865383,1733844638881,-151.0,0.00027,7]
[344865385,1733844638891,-151.0,0.00027,7]
[344865387,1733844638900,-151.0,0.00027,7]
[344865389,1733844638910,-151.0,0.00027,7]
[344865391,1733844638919,-151.0,0.00027,7]
[344865393,1733844638929,-160.0,0.00027033,4]
[344865395,1733844638943,-1544.04240555,0.00027038,2]
[344865397,1733844638953,-188.0,0.00027105,2]
[344865399,1733844638963,-500.0,0.00027397,7]
[344865401,1733844638973,-160.0,0.0002746,5]
[344865403,1733844638987,-97394.92652804,0.000275,7]
[344865405,1733844638996,-1544.04240555,0.00027751,2]
[344865407,1733844639006,-159.28116214,0.00027767,2]
[344865409,1733844639015,-1000.0,0.000278,8]
[344865411,1733844639025,-151.66149312,0.00027829,2]
[344865412,1733844639035,-160.0,0.00027887,6]
[344865413,1733844639046,-339.19803209,0.000279,2]
[344865414,1733844639055,-500.0,0.00028,30]
[344865415,1733844639065,-500.0,0.00028,2]
[344865417,1733844639083,-151.0,0.00028,7]
[344865419,1733844639097,-151.0,0.00028,7]
[344865421,1733844639108,-151.0,0.00028,7]
[344865423,1733844639118,-151.0,0.00028,7]
[344865425,1733844639128,-174.132502,0.00028,7]
[344865427,1733844639138,-151.0,0.00028,7]
[344865429,1733844639148,-151.0,0.00028,7]
[344865431,1733844639158,-151.0,0.00028,7]
[344865433,1733844639169,-151.0,0.00028,7]
[344865435,1733844639179,-40277.806527,0.00028,2]
[344865437,1733844639189,-151.0,0.00028003,6]
[344865439,1733844639203,-160.0,0.00028314,7]
[344865441,1733844639215,-213.5058504,0.00028356,30]
[344865443,1733844639227,-354.7123299,0.00028356,30]
[344865445,1733844639237,-153.0,0.00028356,30]
[344865447,1733844639246,-155.305221,0.00028356,30]
[344865449,1733844639256,-213.5058504,0.00028356,30]